[Event "Przeworsk GM norm 2022"]
[Site "Przeworsk"]
[Date "2022.06.04"]
[Round "8.1"]
[White "Stefansson, Hannes"]
[Black "Mis, Mieszko"]
[Result "1-0"]
[ECO "B12"]
[WhiteElo "2534"]
[BlackElo "2388"]
[Annotator "TA"]
[PlyCount "79"]
[EventDate "2022.05.30"]
[EventType "tourn"]
[EventCountry "POL"]
[SourceTitle "playchess.com"]
[Source "ChessBase"]
[SourceQuality "1"]
[TimeControl "40/5400+30:1800+30"]

{[%evp 9,79,3,0,0,11,12,16,0,18,0,14,0,0,0,12,0,0,0,0,0,0,0,18,-4,15,16,35,35,27,0,35,33,43,50,35,34,34,34,34,35,35,0,48,35,35,35,49,35,35,30,22,13,25,18,10,0,0,0,18,18,47,0,104,104,104,104,127,66,1045,1012,858,787]} 1. e4 {[%emt 0:00:08][%cal Be2e4,Be4e5][%mdl 32]} c6 {[%emt 0:00:11]} 2. d4 {[%emt 0:00:18]} d5 {[%emt 0:00:05]} 3. e5 {[%emt 0:00:22]} Bf5 {[%emt 0:00:07]} 4. h4 {[%emt 0:00:28]} h5 {[%emt 0:06:04]} 5. Bd3 {[%emt 0:00:49]} Bxd3 {[%emt 0:00:05]} 6. Qxd3 {[%emt 0:00:12][%cal Oe5e6] B12: Caro-Kann: Advance Variation.} Qa5+ {[%emt 0:00:03]} 7. Nd2 {[%emt 0:00:23][%cal Oe5e6] aiming for e6!} e6 {[%emt 0:00:35]} 8. Ngf3 {[%emt 0:00:31] The position is equal.} Ne7 {[%emt 0:00:59]} 9. O-O {[%emt 0:00:43][%cal Ob2b4]} Nf5 {[%emt 0:01:14]} 10. Nb3 $1 {[%emt 0:00:57][%mdl 4] is now more promising than 10.c4.} Qa6 {[%emt 0:02:54]} 11. Qd1 {[%emt 0:00:40]} Be7 {[%emt 0:01:29]} 12. g3 {[%emt 0:01:58]} Nd7 {[%emt 0:02:29]} 13. Bg5 {[%emt 0:02:16]} Bxg5 {[%emt 0:07:05]} 14. Nxg5 {[%emt 0:00:11][%cal Bf3g5,Bg5e4,Be4f6][%mdl 32] [#]} Rc8 $146 {[%emt 0:00:15]} ({Predecessor:} 14... Qc4 15. c3 a5 16. Qf3 a4 17. Nd2 Qb5 18. Rab1 g6 19. Rfe1 Nb6 20. b3 a3 {1-0 (39) Kotronias,V (2482)-Altun,A (2274) Ayvalik 2022}) 15. Re1 {[%emt 0:06:20]} Qb6 {[%emt 0:05:48]} 16. Rc1 {[%emt 0:07:27]} g6 {[%emt 0:05:04]} 17. c4 {[%emt 0:02:15]} dxc4 {[%emt 0:17:53]} 18. Rxc4 {[%emt 0:00:35][%cal Od4d5]} O-O {[%emt 0:04:03]} 19. Ne4 {[%emt 0:04:34]} (19. Rc3 {is interesting.} Kg7 20. Qc2 Rcd8 21. Rd1) 19... Qd8 {[%emt 0:05:10]} 20. Ra4 {[%emt 0:06:16]} Ra8 {[%emt 0:04:29]} 21. Nbc5 {[%emt 0:03:32]} Nb6 {[%emt 0:02:13]} 22. Rb4 {[%emt 0:09:58]} ({Reject} 22. Nxb7 Qb8 23. Nec5 (23. Nf6+ $2 Kg7 $17) 23... Nxa4 24. Qxa4 Qc7 $17) 22... Qe7 {[%emt 0:01:14]} 23. Nf6+ {[%emt 0:04:40]} Kg7 $1 {[%emt 0:02:15]} 24. Qc1 {[%emt 0:02:46]} Rab8 {[%emt 0:03:43]} 25. Rd1 {[%emt 0:07:02]} Nd5 {[%emt 0:06:56]} (25... Rfd8 $11 {is superior.}) 26. Ra4 {[%emt 0:00:18]} Rfd8 {[%emt 0:05:40]} 27. Nce4 {[%emt 0:01:48]} a6 {[%emt 0:07:00]} 28. a3 {[%emt 0:03:54]} Qf8 {[%emt 0:04:45]} 29. Rc4 {[%emt 0:02:52]} Nxf6 {[%emt 0:00:51]} 30. Nxf6 {[%emt 0:00:52]} b5 {[%emt 0:03:46]} 31. Rxc6 {[%emt 0:06:57]} Nxd4 {[%emt 0:00:02] [#] White must now prevent ...Ne2+.} 32. Rxd4 {[%emt 0:00:15]} Rxd4 {[%emt 0:00:01]} 33. Qg5 {[%emt 0:00:23] Strongly threatening Nxh5+.} Qh8 {[%emt 0:01:38] ...Qh6 is the strong threat.} 34. Rc7 {[%emt 0:00:27][%cal Of6h5][%mdl 1024] Hoping for Nxh5+! White has compensation.} Rf8 $1 {[%emt 0:00:41]} 35. Nd7 {[%emt 0:00:30]} (35. Kg2 $1 $14 {might be stronger.}) 35... Re8 {[%emt 0:00:36]} (35... Rc8 $11 {keeps the balance.} 36. Ra7 Qd8) 36. Qf6+ $16 {[%emt 0:01:07]} Kg8 {[%emt 0:00:05] [#]} 37. Qf3 $1 $36 {[%emt 0:00:21][%mdl 2048] And now Nf6+ would win. Black is under strong pressure.} Kg7 {[%emt 0:00:59]} 38. Ra7 {[%emt 0:02:24] 0x0.002043f22ba6dp-1022s more active pieces.} ({But not} 38. Nc5 $6 Qf8 $14) ({White should try} 38. b4 $16) 38... Qh6 $2 {[%emt 0:00:31][%mdl 8192]} (38... a5 $14) 39. Nc5 $18 {[%emt 0:01:16]} Qc1+ {[%emt 0:00:28]} 40. Kg2 {[%emt 0:00:00] Weighted Error Value: White=0.11 (very precise) /Black=0.13 (very precise)} 1-0

[Event "Przeworsk GM norm 2022"]
[Site "Przeworsk"]
[Date "2022.06.04"]
[Round "8.2"]
[White "Neugebauer, Martin"]
[Black "Omelja, Artem"]
[Result "1-0"]
[ECO "C65"]
[WhiteElo "2505"]
[BlackElo "2515"]
[Annotator "TA"]
[PlyCount "83"]
[EventDate "2022.05.30"]
[EventType "tourn"]
[EventCountry "POL"]
[SourceTitle "playchess.com"]
[Source "ChessBase"]
[SourceQuality "1"]
[TimeControl "40/5400+30:1800+30"]

{[%evp 12,83,16,9,24,9,8,0,24,26,18,-86,14,0,17,17,16,23,37,32,48,-3,53,8,95,96,114,79,105,55,89,65,73,63,83,62,79,71,74,68,75,58,69,58,63,47,66,63,74,15,114,103,108,85,75,121,227,141,273,272,290,214,208,216,260,254,255,240,285,262,249,248,344,318]} 1. e4 {[%emt 0:00:17]} e5 {[%emt 0:00:17]} 2. Nf3 {[%emt 0:00:16]} Nc6 {[%emt 0:00:07]} 3. Bb5 {[%emt 0:00:47]} Nf6 {[%emt 0:00:07]} 4. d3 {[%emt 0:00:51]} Bc5 {[%emt 0:00:10]} 5. c3 {[%emt 0:00:47]} O-O {[%emt 0:00:22]} 6. O-O {[%emt 0:00:19]} d6 {[%emt 0:00:29]} 7. Nbd2 {[%emt 0:01:39] 7.Re1 deserves study.} a6 {[%emt 0:00:21] C65: Ruy Lopez: Berlin Defence (3...Nf6), unusual lines and 4 0-0 Bc5.} 8. Ba4 {[%emt 0:00:31]} b5 {[%emt 0:00:35]} 9. Bc2 {[%emt 0:00:31]} a5 {[%emt 0:02:11] The position is equal.} 10. a4 {[%emt 0:03:09]} b4 {[%emt 0:00:08] [#]} 11. Re1 $146 {[%emt 0:12:21]} (11. Nb3 $11) ({Predecessor:} 11. Nb3 Bb6 12. Bg5 h6 13. Bh4 g5 14. Bg3 Bg4 15. h3 Bh5 16. Nbd2 Rb8 17. Re1 {0-1 (56) Husemann,A (2230)-Corti,H (2317) LSS email 2016}) 11... h6 {[%emt 0:12:01]} (11... Ng4 $17 12. Re2 Bxf2+ 13. Rxf2 Ne3) 12. Nf1 $11 {[%emt 0:09:44]} bxc3 {[%emt 0:00:49]} 13. bxc3 {[%emt 0:00:05]} Bb6 {[%emt 0:00:47]} 14. Ng3 {[%emt 0:06:42]} Ne7 {[%emt 0:00:35]} 15. d4 {[%emt 0:04:03]} Ng6 {[%emt 0:00:18]} 16. Nf5 {[%emt 0:03:34]} (16. Be3 $14) 16... Kh7 {[%emt 0:05:57]} (16... Re8 $11) 17. Bd2 {[%emt 0:06:41]} Qe8 {[%emt 0:05:15]} (17... Re8 $11) 18. Qc1 $16 {[%emt 0:03:40][%cal Rd2h6]} Ng8 {[%emt 0:00:10]} 19. Rb1 {[%emt 0:05:51][%cal Of5d6]} Rb8 {[%emt 0:01:59]} 20. Ne3 {[%emt 0:02:30]} (20. h4 $16) 20... f6 {[%emt 0:08:07]} 21. h3 {[%emt 0:01:38]} N8e7 {[%emt 0:01:29]} 22. Nc4 {[%emt 0:01:19]} Ba6 {[%emt 0:01:31]} 23. Nxb6 {[%emt 0:05:29]} cxb6 {[%emt 0:00:18]} 24. Qa3 {[%emt 0:00:31]} Qc6 {[%emt 0:00:39]} 25. h4 {[%emt 0:07:04]} Qc7 {[%emt 0:03:44]} 26. Bb3 {[%emt 0:03:39]} Nc6 {[%emt 0:14:05]} 27. Be6 {[%emt 0:05:38]} Nge7 {[%emt 0:02:38]} 28. Rb2 {[%emt 0:01:08]} Bc8 {[%emt 0:02:52]} 29. Qa2 {[%emt 0:00:26] White is much more active.} f5 {[%emt 0:03:36]} 30. dxe5 {[%emt 0:01:40]} (30. exf5 $16 {Strongly threatening g4.} Nxf5 31. Bd5) 30... dxe5 {[%emt 0:02:07]} (30... Nxe5 $11 31. Nxe5 dxe5) 31. exf5 {[%emt 0:00:23]} Nxf5 {[%emt 0:00:36]} 32. Bxc8 {[%emt 0:00:21]} Qxc8 {[%emt 0:07:34]} 33. Qb1 {[%emt 0:00:33]} Qe6 {[%emt 0:00:43]} (33... Kh8 $16) 34. h5 {[%emt 0:04:53] Bf4 is the strong threat.} ({But not} 34. Rxb6 $6 Rxb6 35. Qxb6 e4 $16) 34... Kh8 {[%emt 0:02:42] [#]} (34... Kg8 $16 35. Rxb6 Nd6) 35. Bf4 $1 $18 {[%emt 0:05:40]} ({Not} 35. Rxb6 Rxb6 36. Qxb6 e4 $16) 35... Qf7 {[%emt 0:00:57]} (35... Nh4 $2 36. Nxh4 Kg8 37. Ng6 $18) 36. Nxe5 {[%emt 0:01:21]} Nxe5 {[%emt 0:00:06]} 37. Bxe5 {[%emt 0:00:12]} Rbe8 {[%emt 0:00:21]} 38. Rxb6 {[%emt 0:00:55]} Qxh5 {[%emt 0:00:07]} 39. Rb5 {[%emt 0:00:53]} Qg4 {[%emt 0:00:14]} 40. Qe4 {[%emt 0:00:00]} Qg5 {[%emt 0:00:00]} 41. Rxa5 {[%emt 0:07:28]} Nh4 {[%emt 0:01:06]} 42. Re3 {[%emt 0:00:26] Inhibits Nf3+.  Weighted Error Value: White=0.20 (precise) /Black=0.36} 1-0

[Event "Przeworsk GM norm 2022"]
[Site "Przeworsk"]
[Date "2022.06.04"]
[Round "8.3"]
[White "Golubka, Petro"]
[Black "Fus, Jakub"]
[Result "1/2-1/2"]
[ECO "B12"]
[WhiteElo "2380"]
[BlackElo "2378"]
[Annotator "TA"]
[PlyCount "119"]
[EventDate "2022.05.30"]
[EventType "tourn"]
[EventCountry "POL"]
[SourceTitle "playchess.com"]
[Source "ChessBase"]
[SourceQuality "1"]
[TimeControl "40/5400+30:1800+30"]

{[%evp 11,119,19,20,-18,7,0,29,28,33,34,39,22,42,32,48,29,30,17,12,-43,68,-17,-14,-20,-6,-11,0,0,-18,-17,0,-7,0,-26,29,7,57,0,82,75,72,60,106,99,96,61,80,42,46,33,35,42,44,42,66,10,89,78,167,143,136,124,136,24,29,20,20,20,20,18,20,20,20,0,8,8,8,0,8,8,8,0,0,0,14,8,8,8,14,0,0,0,8,8,8,8,8,0,24,0,8,8,8,8,24,24,24,24,24,24]} 1. e4 {[%emt 0:01:07]} c6 {[%emt 0:00:21]} 2. d4 {[%emt 0:02:29]} d5 {[%emt 0:00:25]} 3. f3 {[%emt 0:01:18]} dxe4 {[%emt 0:00:21]} 4. fxe4 {[%emt 0:01:30]} e5 {[%emt 0:00:20]} 5. Nf3 {[%emt 0:00:19]} Bg4 {[%emt 0:00:26]} 6. Bc4 {[%emt 0:00:33]} Nd7 {[%emt 0:00:28]} 7. Nc3 {[%emt 0:05:19] [#] B12: Caro-Kann: Advance Variation.} (7. c3 $5 {[%cal Rd1b3]}) 7... Bd6 $146 {[%emt 0:09:34]} (7... Bb4 {seems wilder.} 8. a3 Ba5 9. dxe5 Bxf3 10. Bxf7+ Kf8) ({Predecessor:} 7... exd4 8. Qxd4 Bxf3 9. gxf3 Ngf6 10. Qf2 {1-0 (10) Albesa,A (1586)-Antonov,I (1714) LSS email 2012}) 8. d5 {[%emt 0:01:07]} Nb6 {[%emt 0:01:29]} 9. Bb3 {[%emt 0:01:12]} Nf6 {[%emt 0:03:36]} 10. dxc6 {[%emt 0:05:00]} bxc6 {[%emt 0:01:26]} 11. h3 {[%emt 0:00:43]} Bh5 {[%emt 0:05:20]} 12. Qe2 {[%emt 0:02:23]} Qe7 {[%emt 0:02:26]} 13. Bg5 {[%emt 0:04:20]} h6 {[%emt 0:00:22]} 14. Bd2 {[%emt 0:06:40]} a5 {[%emt 0:07:59] Strongly threatening ...Bxf3.} 15. Na4 {[%emt 0:02:56]} (15. g4 $11 a4 16. Qf2 (16. gxh5 axb3 17. cxb3 Nxh5 $11)) 15... Nbd7 {[%emt 0:03:03]} (15... Nxa4 $1 $15 16. Bxa4 O-O) 16. c3 {[%emt 0:04:20] White is more active.} ({White should play} 16. O-O-O $14) 16... O-O {[%emt 0:05:58]} 17. O-O-O {[%emt 0:01:22][%cal Od2h6]} Nc5 {[%emt 0:02:38]} 18. Nxc5 {[%emt 0:05:56]} Bxc5 {[%emt 0:00:10]} 19. Kb1 {[%emt 0:01:12]} Bg6 {[%emt 0:10:54]} 20. Bc2 {[%emt 0:01:00]} Nh5 {[%emt 0:00:12]} 21. Qe1 {[%emt 0:00:15] Prevents Ng3.} a4 {[%emt 0:03:18]} 22. Nh4 {[%emt 0:06:12]} Nf4 {[%emt 0:02:06]} (22... Rfb8 $142 23. Nxg6 fxg6) 23. g3 $11 {[%emt 0:07:44]} Ne6 {[%emt 0:00:48]} (23... Qb7 $11 24. Bc1 (24. gxf4 Rfb8 $11) 24... Nh5) 24. Qe2 {[%emt 0:00:46]} (24. Nxg6 $14 fxg6 25. Qe2) 24... Kh7 {[%emt 0:05:35]} (24... Bh7 $1 $11) 25. Bc1 {[%emt 0:02:03]} a3 {[%emt 0:04:23] Threatens to win with ...axb2.} 26. b3 {[%emt 0:00:07]} Bb6 {[%emt 0:01:33]} (26... Nc7 $14) 27. Rhf1 $16 {[%emt 0:06:22]} Qc5 {[%emt 0:02:01]} 28. Qe1 {[%emt 0:01:55]} Rfd8 {[%emt 0:06:55]} 29. Rxd8 {[%emt 0:05:28]} Rxd8 {[%emt 0:00:06]} 30. Nxg6 {[%emt 0:00:47]} fxg6 {[%emt 0:00:31]} 31. h4 {[%emt 0:03:40]} Rf8 {[%emt 0:01:40] Prevents Rf3.} 32. Rxf8 {[%emt 0:00:40]} Qxf8 {[%emt 0:00:03]} 33. g4 {[%emt 0:02:58]} Bf2 {[%emt 0:02:17]} (33... Qf3 $1 $11) 34. Qf1 {[%emt 0:00:26]} Qf6 {[%emt 0:03:53]} (34... Bxh4 $16 {is a better defense.} 35. Qxf8 Nxf8) 35. g5 {[%emt 0:01:49]} Qf3 {[%emt 0:02:30] [#]} 36. gxh6 $1 {[%emt 0:00:40]} ({Of course not} 36. Bxa3 $6 h5 $14) 36... Nc5 {[%emt 0:01:04] [#]} 37. hxg7 {[%emt 0:00:44]} ({Don't take} 37. Bxa3 $6 Nxe4 38. Bxe4 Qxe4+ 39. Kb2 Bxh4 $14) ({White must play} 37. h5 $1 $16 {[%cal Rh5g6]} gxh5 38. Bxa3) 37... Kxg7 $11 {[%emt 0:00:10]} 38. Qd1 {[%emt 0:06:02]} Qxc3 {[%emt 0:04:48] ( -> ...Bd4)} ({Don't play} 38... Qxd1 39. Bxd1 Nxe4 40. Kc2 $16) 39. Qd2 {[%emt 0:00:34]} Qxd2 {[%emt 0:00:34]} 40. Bxd2 {[%emt 0:00:00][%mdl 4096] Endgame KBB-KBN} Ne6 {[%emt 0:00:00]} 41. Bc1 {[%emt 0:01:18]} Bc5 {[%emt 0:04:33]} 42. Bd2 {[%emt 0:02:57]} Be7 {[%emt 0:01:44]} 43. Be1 {[%emt 0:00:53]} Nf4 {[%emt 0:08:50]} 44. b4 {[%emt 0:02:30]} Ne2 {[%emt 0:02:04]} 45. Bd1 {[%emt 0:01:31]} Nd4 {[%emt 0:00:10]} 46. Bg3 {[%emt 0:00:54]} Kf6 {[%emt 0:00:36]} 47. Be1 {[%emt 0:00:30]} Bf8 {[%emt 0:01:01]} 48. Bg4 {[%emt 0:00:24]} Bh6 {[%emt 0:02:12]} 49. Bc3 {[%emt 0:01:10]} Nb5 {[%emt 0:02:30]} 50. Be1 {[%emt 0:00:19]} Nd4 $1 {[%emt 0:00:14]} 51. Bc3 {[%emt 0:00:16]} Ke7 {[%emt 0:01:23]} 52. Bxd4 {[%emt 0:02:17]} exd4 {[%emt 0:00:04] KB-KB} 53. Kc2 {[%emt 0:00:05]} Kd6 {[%emt 0:00:27]} 54. Kd3 {[%emt 0:00:09]} Be3 {[%emt 0:01:08]} 55. Bd1 {[%emt 0:00:59]} Bf2 {[%emt 0:01:08]} 56. h5 gxh5 {[%emt 0:00:03]} 57. Bxh5 {[%emt 0:01:07]} Be1 {[%emt 0:00:14]} 58. Kxd4 {[%emt 0:00:28] White has an edge.} Bxb4 {[%emt 0:00:04]} 59. e5+ {[%emt 0:00:06]} Ke7 {[%emt 0:00:10]} 60. Ke4 {[%emt 0:00:04] Weighted Error Value: White=0.14 (very precise) /Black=0.19 (very precise)} 1/2-1/2

[Event "Przeworsk GM norm 2022"]
[Site "Przeworsk"]
[Date "2022.06.04"]
[Round "8.4"]
[White "Licznerski, Lukasz"]
[Black "Teclaf, Pawel"]
[Result "1/2-1/2"]
[ECO "C82"]
[WhiteElo "2439"]
[BlackElo "2537"]
[Annotator "TA"]
[PlyCount "86"]
[EventDate "2022.05.30"]
[EventType "tourn"]
[EventCountry "POL"]
[SourceTitle "playchess.com"]
[Source "ChessBase"]
[SourceQuality "1"]
[TimeControl "40/5400+30:1800+30"]

{[%evp 32,86,0,-17,0,0,0,0,66,68,72,67,75,77,67,71,66,56,97,97,97,96,99,87,102,93,97,51,96,77,70,45,56,43,39,47,64,67,77,0,0,0,0,0,0,-85,0,0,0,0,0,0,0,0,0,0,0]} 1. e4 {[%emt 0:05:31]} e5 {[%emt 0:00:03]} 2. Nf3 {[%emt 0:00:07]} Nc6 {[%emt 0:00:04]} 3. Bb5 {[%emt 0:00:24]} a6 {[%emt 0:00:04]} 4. Ba4 {[%emt 0:00:03]} Nf6 {[%emt 0:00:03]} 5. O-O {[%emt 0:00:17]} Nxe4 {[%emt 0:00:06]} 6. d4 {[%emt 0:02:17]} b5 {[%emt 0:00:08]} 7. Bb3 {[%emt 0:00:28]} d5 {[%emt 0:00:04]} 8. dxe5 {[%emt 0:00:14]} Be6 {[%emt 0:00:04]} 9. c3 {[%emt 0:00:40]} Bc5 {[%emt 0:03:11]} 10. Nbd2 {[%emt 0:00:38]} O-O {[%emt 0:00:08]} 11. Bc2 {[%emt 0:00:33]} Nxf2 {[%emt 0:00:03]} 12. Rxf2 {[%emt 0:00:09]} Bxf2+ {[%emt 0:00:03]} 13. Kxf2 {[%emt 0:00:08]} f6 {[%emt 0:00:03]} 14. exf6 {[%emt 0:08:01]} Qxf6 {[%emt 0:00:18]} 15. Nf1 {[%emt 0:06:37]} Ne5 {[%emt 0:02:12]} 16. Be3 {[%emt 0:03:32]} Rae8 {[%emt 0:20:21]} 17. Bd4 {[%emt 0:12:23]} Qh4+ {[%emt 0:11:21] C82: Open Ruy Lopez: 9 c3 without 9...Be7.} 18. Kg1 {[%emt 0:04:02]} Nxf3+ {[%emt 0:00:42]} 19. gxf3 {[%emt 0:00:02]} Bf5 {[%emt 0:00:21]} (19... Bh3 $11) 20. Bxf5 $1 $14 {[%emt 0:09:44]} Rxf5 {[%emt 0:00:20]} 21. Ng3 {[%emt 0:00:41] [#]} Rf7 $146 {[%emt 0:01:40]} ({Predecessor:} 21... Rf4 22. a4 bxa4 23. Rxa4 c5 24. Bxg7 d4 25. cxd4 Kxg7 26. dxc5 Kh8 27. Re4 Rfxe4 28. Nxe4 {1-0 (34) Nakamura,T-Dudley,B IECG email 2004}) 22. Qd3 {[%emt 0:03:35]} Qh3 {[%emt 0:06:31]} 23. Qf1 {[%emt 0:06:52]} Qd7 {[%emt 0:02:55]} 24. Rd1 {[%emt 0:04:02]} Qd6 {[%emt 0:09:25]} 25. b4 {[%emt 0:00:50] Prevents c5.} Qf4 {[%emt 0:01:00]} 26. Kg2 {[%emt 0:02:05]} c6 {[%emt 0:00:52]} 27. Qd3 {[%emt 0:01:15]} Re6 {[%emt 0:08:28]} 28. Rd2 {[%emt 0:00:43]} Rfe7 {[%emt 0:07:02][%cal Bf7e7,Be7e6,Be6f6][%mdl 32]} 29. Re2 {[%emt 0:03:18]} (29. Rf2 $16) 29... Qg5 {[%emt 0:04:19] [#] And now ...Rxe2+ would win.} 30. Rxe6 {[%emt 0:02:49]} Rxe6 {[%emt 0:00:05]} 31. Bf2 {[%emt 0:00:39]} h5 {[%emt 0:06:31]} 32. h4 {[%emt 0:08:35]} Qxh4 {[%emt 0:00:25]} 33. Qf5 {[%emt 0:00:15][%csl LRe6,LRh5] Prevents Qg5.} Rf6 {[%emt 0:08:42]} 34. Qxh5 {[%emt 0:00:23]} Qc4 {[%emt 0:00:11][%csl LRa2,LRc3]} 35. Nf5 {[%emt 0:07:23]} ({Reject} 35. Qe8+ Kh7 $11) (35. Qg5 $16) 35... Qd3 $11 {[%emt 0:01:55]} 36. Qe8+ $40 {[%emt 0:01:50][%mdl 128] White is up to no good.} Kh7 {[%emt 0:00:07]} 37. Qh5+ {[%emt 0:00:03]} Kg8 {[%emt 0:00:18]} 38. Ne7+ {[%emt 0:02:14]} Kf8 {[%emt 0:00:07][%mdl 1024] Black has strong compensation.} 39. Bc5 {[%emt 0:00:25][%csl LRc6,LRd5] The position is equal.} Qe2+ {[%emt 0:00:59]} 40. Kg3 {[%emt 0:00:00]} Qe1+ {[%emt 0:00:00]} 41. Kg4 {[%emt 0:18:20] [#] Threatening mate with Qh8+.} Qe6+ {[%emt 0:02:03]} 42. Kh4 {[%emt 0:00:18] Qh8+ would kill now.} Qe1+ {[%emt 0:02:49]} 43. Kg4 {[%emt 0:00:13] White wants to mate with Qh8+. The board is on fire.} Qe6+ {[%emt 0:00:05] Weighted Error Value: White=0.12 (very precise) /Black=0.11 (very precise)} 1/2-1/2

[Event "Przeworsk GM norm 2022"]
[Site "Przeworsk"]
[Date "2022.06.04"]
[Round "8.5"]
[White "Baum, Jonasz"]
[Black "Mikrut, Dariusz"]
[Result "1-0"]
[ECO "E81"]
[WhiteElo "2409"]
[BlackElo "2361"]
[Annotator "TA"]
[PlyCount "107"]
[EventDate "2022.05.30"]
[EventType "tourn"]
[EventCountry "POL"]
[SourceTitle "playchess.com"]
[Source "ChessBase"]
[SourceQuality "1"]
[TimeControl "40/5400+30:1800+30"]

{[%evp 14,107,26,31,22,22,33,21,29,25,49,51,51,42,48,45,51,53,39,40,76,35,37,28,46,-25,0,0,0,-78,-44,-20,17,0,0,0,0,0,0,10,8,0,312,309,292,315,327,253,263,231,362,358,359,366,365,343,345,326,306,297,286,266,574,181,180,185,173,183,271,212,275,272,308,266,241,266,320,277,499,491,842,830,857,878,775,706,29990,29991,29991,29992,29992,7233,6185,5509,1877,1472]} 1. d4 {[%emt 0:00:05]} Nf6 {[%emt 0:00:08]} 2. c4 {[%emt 0:00:15]} g6 {[%emt 0:00:07]} 3. Nc3 {[%emt 0:00:31]} Bg7 {[%emt 0:00:06]} 4. e4 {[%emt 0:00:06]} d6 {[%emt 0:00:05]} 5. f3 {[%emt 0:00:12]} O-O {[%emt 0:00:15]} 6. Nge2 {[%emt 0:00:24]} c5 {[%emt 0:00:08]} 7. d5 {[%emt 0:00:58]} e6 {[%emt 0:00:34]} 8. Ng3 {[%emt 0:00:13]} h5 {[%emt 0:00:27] E81: King's Indian: Sämisch: 6th move deviations (including 6 Be3 c6).} 9. Bg5 {[%emt 0:02:19][%cal Oe4e5,Bc1g5,Bg5h4,Bh4g3][%mdl 32]} exd5 {[%emt 0:00:43]} 10. cxd5 {[%emt 0:00:55]} a6 {[%emt 0:03:07] The position is equal. outshines the older 10...Qb6.} 11. a4 {[%emt 0:00:52][%cal Ba2a4,Ba4a5][%mdl 32]} Qb6 {[%emt 0:02:54]} 12. Qd2 {[%emt 0:01:17]} Nh7 {[%emt 0:00:26]} 13. a5 {[%emt 0:04:13]} Qc7 {[%emt 0:00:56]} 14. Bh4 {[%emt 0:00:30] [#]} f6 $146 {[%emt 0:06:11]} ({Predecessor:} 14... Nd7 15. Be2 b5 16. axb6 Qxb6 17. O-O Rb8 18. Ra2 Re8 19. Nh1 Qb4 20. Nf2 Ne5 {½-½ (51) Vitiugov,N (2741)-Guseinov,G (2607) Antalya 2013}) 15. e5 {[%emt 0:19:29]} fxe5 {[%emt 0:10:30]} 16. Nge4 {[%emt 0:01:45]} Rf4 {[%emt 0:01:25]} 17. Bg3 {[%emt 0:06:43][%mdl 1024] White has strong compensation. White is more active.} Rf7 {[%emt 0:00:18]} 18. Na4 {[%emt 0:08:16][%cal Bc3a4,Ba4b6,Bb6c4][%mdl 32]} Nd7 {[%emt 0:13:27] Against Nb6} 19. b4 {[%emt 0:03:42]} (19. Bd3 $1 $14) 19... Nhf6 {[%emt 0:14:18] Hoping for ...Nxe4.} 20. Bd3 {[%emt 0:11:57]} cxb4 {[%emt 0:01:36]} (20... Nxd5 $2 21. Bc4 N7f6 22. Bxd5 Nxd5 23. Qxd5 cxb4 24. Nb6 $18) 21. O-O {[%emt 0:10:19] [#]} (21. Qxb4 $11 {remains equal.} Nxd5 22. Qd2) 21... Nxe4 $1 $17 {[%emt 0:15:11]} (21... Nxd5 $2 22. Rfc1 Qxa5 23. Nxd6 $18) (21... Qxa5 22. Nxd6 Qxd5 23. Nxf7 Qxf7 24. Qxb4 $16) 22. Bxe4 {[%emt 0:00:02]} Nf8 {[%emt 0:00:12]} (22... Qxa5 $5 {[%cal Rb7b5]} 23. Bxg6 Rf6 $15) 23. Nb6 $36 {[%emt 0:02:56][%mdl 2048] White has some pressure.} Rb8 {[%emt 0:00:15]} (23... Qc5+ $2 24. Bf2 Qc3 25. Qxc3 bxc3 26. Nxa8 $18) 24. Rac1 {[%emt 0:13:47]} Qd8 {[%emt 0:00:08]} 25. Qxb4 {[%emt 0:00:31]} Bf5 {[%emt 0:10:31]} 26. Nc4 {[%emt 0:01:11]} Rd7 {[%emt 0:02:31]} 27. Nb6 {[%emt 0:00:25]} Rc7 {[%emt 0:00:37][%mdl 8192] [#] Black is now going downhill.} (27... Rf7 $11) 28. Bh4 $1 $18 {[%emt 0:01:27][%mdl 576] Deflection} Qxh4 {[%emt 0:01:39]} 29. Rxc7 {[%emt 0:00:01]} Bh6 {[%emt 0:00:10]} 30. Qe1 {[%emt 0:04:33] Inhibits Be3+.} Qd8 {[%emt 0:00:29]} 31. Rc2 {[%emt 0:01:21]} Bf4 {[%emt 0:01:45]} (31... Bd7 {was called for.} 32. Nxd7 Qxd7) 32. Bxf5 {[%emt 0:01:24]} gxf5 {[%emt 0:00:06]} 33. g3 {[%emt 0:00:21]} Bh6 {[%emt 0:00:31][%cal Bf4h6,Bh6g7,Bg7d4,Bd4c5][%mdl 32]} 34. f4 {[%emt 0:01:12]} e4 {[%emt 0:00:12]} 35. Qc3 {[%emt 0:00:25]} Bg7 {[%emt 0:01:50]} 36. Qc7 {[%emt 0:02:15]} Bd4+ {[%emt 0:00:43]} 37. Kh1 {[%emt 0:00:58] Nc8 is the strong threat.} Qe8 {[%emt 0:00:42]} (37... Bc5 {is tougher.} 38. Qxd8 Rxd8) 38. Qc4 $2 {[%emt 0:01:06]} (38. Nc8 Rxc8 39. Qxc8) 38... Bc5 {[%emt 0:00:41]} 39. Na4 {[%emt 0:00:18]} Nd7 {[%emt 0:00:56]} 40. Rb1 {[%emt 0:00:00]} ({But not} 40. Nxc5 $6 Nxc5 41. Rb1 Qf7 $14) 40... Qd8 {[%emt 0:00:00]} (40... Ba7 {keeps fighting.} 41. Qc3 e3) 41. Qc3 {[%emt 0:02:27]} ({Resist} 41. Nxc5 $6 Nxc5 42. Rb6 Qf8 $18) 41... Kf7 {[%emt 0:06:50]} 42. Rcb2 {[%emt 0:03:41] Really sharp!} ({Less strong is} 42. Nxc5 Nxc5 43. Rb6 Qe7 $16) 42... Qc7 {[%emt 0:01:23]} 43. Rb3 {[%emt 0:01:42]} Kg6 {[%emt 0:00:15]} 44. Kg2 {[%emt 0:02:36]} Kf7 {[%emt 0:00:20]} 45. h3 {[%emt 0:05:59]} Kg6 $2 {[%emt 0:01:28]} (45... Nf6 46. Nxc5 dxc5) 46. g4 {[%emt 0:06:21]} hxg4 {[%emt 0:01:43]} (46... h4 $142 47. gxf5+ Kf7) 47. hxg4 {[%emt 0:00:03]} fxg4 {[%emt 0:00:06]} 48. f5+ {[%emt 0:01:41]} Kf7 {[%emt 0:02:22]} 49. Rh1 {[%emt 0:00:22] White threatens Rh7+ and mate.} Rf8 {[%emt 0:03:41]} 50. Rh7+ {[%emt 0:04:28]} Ke8 {[%emt 0:00:11]} 51. Qg7 {[%emt 0:00:52][%csl Gh7][%cal Rg7e7]} Kd8 {[%emt 0:00:11]} 52. Rh8 {[%emt 0:02:20]} (52. Rc3 $142 Rxf5 {[#]} 53. Rxc5 $1 {[%mdl 512]} dxc5 54. Qe7+ Kc8 55. Nb6+ Qxb6 56. axb6 Rf2+ 57. Kxf2 g3+ 58. Kxg3 Nxb6 59. Rh8#) 52... Rxh8 {[%emt 0:01:37]} 53. Qxh8+ {[%emt 0:00:04]} Ke7 {[%emt 0:00:05]} 54. f6+ {[%emt 0:00:09] Weighted Error Value: White=0.22 (precise) /Black=0.50} 1-0